bitfinex-derivatives/quotes_ETHF0:USTF0_20260112
["timestamp","ask_amount","ask_price","bid_price","bid_amount"]
[1768238206476,1.259,3128.5,3127.2,0.00246831]
[1768238206673,1.26,3128.5,3127.2,0.1368419]
[1768238209675,1.37749634,3128.5,3127.2,0.00246831]
[1768238210880,1.26,3128.5,3127.2,0.00246831]
[1768238213183,1.26,3128.5,3127.2,0.1368419]
[1768238215385,3.2,3129.2,3127.6,0.13437359]
[1768238215678,1.26,3129.1,3127.6,0.13437359]
[1768238215879,0.252,3129.3,3127.9,1.36246661]
[1768238216679,0.252,3129.3,3128.0,0.13437359]
[1768238216878,1.26,3129.5,3128.0,0.13437359]
[1768238217874,0.15988,3129.8,3128.1,0.13437359]
[1768238218382,1.26,3129.7,3128.1,0.13437359]
[1768238219590,1.259,3129.8,3128.1,0.13437359]
[1768238225894,1.37442661,3129.8,3128.1,0.13437359]
[1768238227588,0.15987,3130.0,3128.3,0.14136405]
[1768238227788,0.11552375,3129.8,3128.2,0.15996]
[1768238227986,1.22809302,3129.7,3127.9,0.14136405]
[1768238228787,0.11552375,3129.8,3127.9,0.14136405]
[1768238229687,0.11537451,3129.3,3127.8,0.15998]
[1768238230284,0.11537451,3129.3,3127.5,0.14136405]
[1768238231696,0.11537451,3129.3,3127.6,0.14136405]
[1768238231895,1.259,3129.2,3127.7,0.14136405]
[1768238232890,0.11654922,3129.1,3127.5,0.15999]
[1768238236894,0.252,3129.2,3127.9,0.14553809]
[1768238240196,0.252,3129.2,3128.0,0.14553809]
[1768238240400,0.252,3129.2,3128.1,0.14553809]
[1768238240802,0.15988,3129.7,3128.1,0.14553809]
[1768238240803,1.259,3129.5,3128.1,0.14553809]
[1768238243190,1.259,3129.5,3127.5,1.22809302]
[1768238243395,0.1599,3129.3,3127.7,0.14553809]
[1768238247696,1.259,3129.5,3127.8,0.14553809]
[1768238248800,0.252,3129.7,3127.9,0.14553809]
[1768238249007,0.252,3129.7,3128.0,0.14553809]
[1768238249303,4.458,3129.6,3128.0,0.14553809]
[1768238250607,4.458,3129.6,3128.0,0.30550809]
[1768238250908,0.252,3129.7,3128.3,0.14553809]
[1768238250909,1.259,3129.5,3128.3,0.14553809]
[1768238251405,1.259,3129.5,3127.9,0.14553809]
[1768238254713,1.259,3129.5,3128.0,0.13837487]
[1768238254903,0.252,3129.7,3128.3,0.13837487]
[1768238255108,1.63105034,3129.7,3128.1,0.15996]
[1768238255304,0.12005034,3129.6,3128.1,0.15996]
[1768238255905,1.511,3129.7,3128.1,0.29833487]
[1768238256216,0.252,3129.7,3128.2,0.13837487]
[1768238256421,1.259,3129.6,3128.3,0.13837487]
[1768238259917,1.259,3129.6,3128.4,0.13837487]
[1768238263316,1.259,3129.7,3128.5,1.22710255]
[1768238264215,1.259,3129.7,3127.9,0.13837487]
[1768238264216,1.22710255,3129.0,3127.9,0.13837487]
[1768238264421,1.22710255,3129.2,3127.9,0.13837487]
[1768238264613,2.48610255,3129.2,3127.9,0.13837487]
[1768238267119,1.22710255,3129.0,3127.8,0.15998]
[1768238267623,1.22710255,3128.8,3127.5,0.13837487]
[1768238267921,1.22710255,3128.6,3127.3,1.36547742]
[1768238268118,1.22710255,3128.2,3127.2,0.00246831]
[1768238268321,0.00293652,3128.2,3127.2,0.00246831]
[1768238268517,1.23003907,3128.2,3127.2,0.00246831]
[1768238268720,2.47003907,3128.2,3127.2,0.00246831]
[1768238271813,0.00293652,3128.2,3127.2,0.00246831]
[1768238272023,1.26193652,3128.2,3127.2,1.22957086]
[1768238272321,0.00293652,3128.2,3127.4,1.22710255]
[1768238274026,1.259,3129.2,3128.1,1.22710255]
[1768238274225,1.259,3129.2,3128.3,1.22710255]
[1768238274426,0.15987,3130.0,3128.9,1.22710255]
[1768238274627,3.199,3129.9,3128.3,0.13837487]
[1768238274824,1.22710255,3130.5,3128.5,0.13837487]
[1768238275024,0.00313716,3130.5,3129.3,1.22710255]
[1768238275223,0.00313716,3130.5,3129.7,1.22710255]
[1768238275431,0.00313716,3130.5,3129.7,1.23041472]
[1768238276230,0.00313716,3130.5,3129.9,1.22710255]
[1768238276424,0.81883518,3130.9,3129.7,1.23041472]
[1768238276627,1.259,3130.8,3129.9,1.22710255]
[1768238277531,1.26128284,3130.8,3129.7,0.00331217]
[1768238281731,0.11105361,3130.7,3129.7,0.00331217]
[1768238282043,1.26128284,3130.8,3129.7,0.00331217]
[1768238282529,1.258,3130.7,3129.7,0.00331217]
[1768238284337,1.258,3130.6,3129.7,0.00331217]
[1768238287437,0.00228284,3130.8,3129.7,0.00331217]
[1768238287640,0.00228284,3130.8,3129.7,0.14966905]
[1768238287641,1.258,3130.7,3129.7,0.14966905]
[1768238289241,0.00228284,3130.8,3129.7,0.14966905]
[1768238292543,0.00228284,3130.8,3129.7,0.00331217]
[1768238294943,1.258,3130.7,3129.7,0.00331217]
[1768238295138,0.00228284,3130.8,3129.7,0.00331217]
[1768238295340,1.258,3130.7,3129.7,0.00331217]
[1768238295536,1.258,3130.6,3129.7,0.00331217]
[1768238298743,1.258,3130.6,3129.0,0.15992]
[1768238298948,1.258,3130.6,3128.8,0.13823418]
[1768238299147,1.36456535,3130.6,3128.8,0.13823418]
[1768238299850,1.36456535,3130.6,3128.8,0.14066138]
[1768238302952,1.258,3130.6,3128.8,0.14066138]
[1768238303153,1.258,3130.5,3128.9,0.13823418]
[1768238303555,1.22651463,3130.4,3129.2,1.22651463]
[1768238304151,1.258,3130.5,3129.2,1.22651463]
[1768238304347,2.48451463,3130.5,3129.2,1.22651463]
[1768238304952,2.48451463,3130.5,3129.2,1.36474881]
[1768238305157,2.48451463,3130.5,3129.3,0.13823418]
[1768238305555,1.22651463,3130.2,3128.9,0.15992]
[1768238305762,1.22651463,3130.2,3128.9,0.29815418]
[1768238307659,1.22651463,3130.0,3128.9,0.29815418]
[1768238309148,1.22651463,3129.8,3128.8,0.0024272]
[1768238312257,0.10844838,3129.7,3127.8,0.13823418]
[1768238312454,0.92,3129.6,3128.4,1.22651463]
[1768238312655,0.92,3129.6,3127.5,1.22651463]
[1768238312656,1.22651463,3129.3,3128.1,0.15996]
[1768238313349,1.22651463,3129.3,3128.1,0.16361578]
[1768238314067,1.22651463,3129.3,3128.1,1.39013041]
[1768238314758,0.92,3129.5,3128.1,1.39013041]
[1768238314759,2.14651463,3129.5,3128.1,1.39013041]
[1768238315259,1.22651463,3129.7,3128.3,1.22651463]
[1768238315462,0.15985,3130.4,3128.9,1.22651463]
[1768238315665,4.456,3130.3,3128.9,1.22651463]
[1768238315857,1.22651463,3130.2,3128.9,1.22651463]
[1768238317064,1.22651463,3130.0,3128.8,0.14004635]
[1768238319370,1.22651463,3130.0,3128.7,1.22651463]
[1768238319667,1.22651463,3129.8,3128.5,1.22651463]
[1768238320059,4.56367126,3130.3,3128.7,1.22651463]
[1768238320260,1.22651463,3130.1,3128.7,1.22651463]
[1768238320459,0.10767126,3130.3,3128.9,1.22651463]
[1768238320460,1.33418589,3130.3,3128.9,1.22651463]
[1768238320661,4.456,3130.2,3128.9,1.22651463]
[1768238321355,1.258,3130.1,3128.9,1.22651463]
[1768238321855,3.198,3130.5,3129.3,1.22651463]
[1768238322171,1.258,3130.4,3129.2,0.14004635]
[1768238324267,1.258,3130.3,3129.2,0.14004635]
[1768238328975,1.258,3130.3,3128.9,0.15992]
[1768238329371,0.10744715,3130.2,3128.4,0.14004635]
[1768238329576,1.33411751,3130.1,3128.4,0.14004635]
[1768238330272,0.10744715,3130.1,3128.5,0.14004635]
[1768238330670,0.10744715,3130.1,3128.5,0.29998635]
[1768238330875,1.258,3130.0,3128.6,0.29998635]
[1768238333776,1.258,3129.9,3128.6,0.29998635]
[1768238333976,1.258,3129.8,3128.7,0.14004635]
[1768238334372,0.15985,3130.3,3128.7,0.14004635]
[1768238334577,4.456,3130.2,3128.7,0.14004635]
[1768238335677,1.258,3130.1,3128.8,0.14004635]
[1768238336881,0.15985,3130.3,3128.8,0.14004635]
[1768238337084,1.258,3130.2,3128.8,0.14004635]
[1768238344989,0.15985,3130.3,3128.8,0.14004635]
[1768238345193,1.257,3130.2,3128.8,0.14004635]
[1768238345793,1.257,3130.1,3128.8,0.14004635]
[1768238349383,1.257,3130.1,3128.9,0.13321198]
[1768238349585,0.252,3130.4,3129.1,0.13321198]
[1768238349991,0.36213282,3130.4,3129.0,0.15992]
[1768238351390,0.252,3130.4,3129.1,0.13321198]
[1768238352193,1.509,3130.6,3129.1,0.13321198]
[1768238352696,1.257,3130.5,3129.1,0.13321198]
[1768238355001,0.252,3130.6,3129.1,0.13321198]
[1768238355203,1.257,3130.5,3129.2,0.1460452]
[1768238356295,0.252,3130.6,3129.2,0.1460452]
[1768238356495,1.257,3130.4,3129.2,0.1460452]
[1768238357595,1.257,3130.7,3129.3,0.1460452]
[1768238358502,0.00228284,3130.8,3129.3,0.3059452]
[1768238358705,1.257,3130.7,3129.4,0.1460452]
[1768238358900,0.00228284,3130.8,3129.4,0.1460452]
[1768238359107,1.257,3130.7,3129.4,0.1460452]
[1768238361807,0.00228284,3130.8,3129.4,0.1460452]
[1768238362010,1.257,3130.7,3129.4,0.1460452]
[1768238365209,1.36059119,3130.7,3129.3,0.1599]
[1768238365411,0.10359119,3130.6,3129.3,0.1599]
[1768238366610,1.33026155,3130.5,3129.0,0.1460452]
[1768238366807,0.10359119,3130.5,3129.0,0.1460452]
[1768238367008,1.257,3130.7,3129.1,0.1460452]
[1768238367609,1.257,3130.7,3129.1,0.3059552]
[1768238368310,0.00228284,3130.8,3129.6,1.37271556]
[1768238368505,1.25928284,3130.8,3129.6,0.1460452]
[1768238368709,1.25928284,3130.8,3129.3,0.1599]
[1768238372925,0.00228284,3130.8,3129.4,0.1460452]
[1768238373118,0.00228284,3130.8,3129.7,1.37271556]
[1768238373324,0.00228284,3130.8,3129.8,0.1460452]
[1768238375825,0.00228284,3130.8,3129.8,0.3059252]
[1768238376124,0.00228284,3130.8,3129.9,0.14508422]
[1768238376919,0.00228284,3130.8,3129.8,0.15988]
[1768238377921,0.00228284,3130.8,3129.5,0.14508422]
[1768238378627,0.00228284,3130.8,3129.5,0.30497422]
[1768238379130,0.00228284,3130.8,3129.6,0.14508422]
[1768238379729,0.00228284,3130.8,3129.7,0.15988]
[1768238379926,0.00228284,3130.8,3129.8,0.14508422]
[1768238380727,0.00228284,3130.8,3129.9,0.14508422]
[1768238382119,0.00228284,3130.8,3129.9,0.30495422]
[1768238382524,0.00228284,3130.8,3130.0,0.14508422]
[1768238383328,0.00228284,3130.8,3130.0,1.37099387]
[1768238387038,0.00228284,3130.8,3130.1,0.14508422]
[1768238387231,1.257,3131.3,3130.1,0.14508422]
[1768238387436,1.257,3131.3,3130.2,1.37099387]
[1768238387732,0.252,3131.6,3130.3,0.14508422]
[1768238387733,2.48290965,3131.4,3130.3,0.14508422]
[1768238388238,2.48704465,3131.4,3130.3,0.1475343]
[1768238389032,1.261135,3131.4,3130.3,0.1475343]
[1768238396046,0.004135,3131.4,3130.4,1.22590965]
[1768238396248,1.260135,3131.4,3130.4,1.22590965]
[1768238397147,1.260135,3131.4,3130.3,0.1475343]
[1768238405455,1.260135,3131.4,3130.4,1.22590965]
[1768238405661,1.260135,3131.4,3130.6,1.22590965]
[1768238405849,1.260135,3131.4,3130.4,1.35914856]
[1768238406559,2.48604465,3131.4,3130.3,0.00245008]
[1768238407456,1.260135,3131.4,3130.3,0.00245008]
[1768238407658,1.260135,3131.4,3130.4,1.22590965]
[1768238407857,1.260135,3131.4,3130.4,1.35914856]
[1768238408061,1.260135,3131.4,3130.5,0.13323891]
[1768238408962,1.260135,3131.4,3130.3,0.00245008]
[1768238409163,0.004135,3131.4,3130.4,0.13323891]
[1768238409562,0.004135,3131.4,3130.4,1.35914856]
[1768238410158,3.30474594,3132.0,3130.4,1.35914856]
[1768238410159,0.26749594,3132.4,3131.0,1.22590965]
[1768238410465,4.42290965,3132.1,3130.8,1.22590965]
[1768238410756,0.26749594,3132.4,3131.0,1.22590965]
[1768238410757,1.256,3132.0,3131.0,1.22590965]
[1768238411261,1.25886647,3132.0,3131.0,1.22590965]
[1768238413764,0.00286647,3132.0,3131.0,1.36668577]
[1768238414660,0.00286647,3132.0,3131.2,1.22590965]
[1768238414869,0.00286647,3132.0,3131.3,0.14077612]
[1768238417765,0.10754496,3132.9,3131.4,1.36668577]
[1768238417960,2.48190965,3132.8,3131.4,1.36668577]
[1768238418266,1.22590965,3132.7,3131.4,1.36668577]
[1768238418855,0.00253091,3132.7,3131.4,1.36668577]
[1768238419060,1.22590965,3132.6,3131.4,1.36668577]
[1768238420176,1.22590965,3132.2,3131.0,0.14077612]
[1768238420364,1.22590965,3131.6,3130.7,0.15983]
[1768238420664,1.22590965,3131.6,3130.6,0.14077612]
[1768238420865,1.256,3131.9,3130.3,0.00245008]
[1768238420866,1.22590965,3131.2,3130.3,0.00245008]
[1768238421268,1.22590965,3131.6,3130.3,0.00245008]
[1768238421764,1.22590965,3131.8,3130.6,1.22590965]
[1768238422561,1.22590965,3131.6,3130.4,1.36668577]
[1768238422761,2.48190965,3131.6,3130.4,1.36668577]
[1768238423470,0.15977,3131.9,3130.6,0.14077612]
[1768238423663,1.22590965,3131.6,3130.4,1.22590965]
[1768238423861,1.22590965,3131.6,3130.3,0.00245008]
[1768238425468,1.22590965,3131.4,3130.3,0.00245008]
[1768238425865,1.256,3131.8,3130.3,0.00245008]
[1768238426072,1.22590965,3131.3,3130.3,0.00245008]
[1768238426371,1.51216581,3131.8,3130.3,0.00245008]
[1768238426563,1.22590965,3131.0,3130.3,0.00245008]
[1768238427068,1.22590965,3131.1,3129.9,0.14077612]
[1768238427264,1.22590965,3131.3,3130.0,1.36668577]
[1768238427572,1.256,3131.2,3130.2,0.14077612]
[1768238428073,1.256,3131.2,3130.2,0.14374802]
[1768238428372,3.197,3131.4,3130.2,0.14374802]
[1768238428373,1.38569965,3131.6,3130.2,0.14374802]
[1768238428574,1.256,3131.5,3130.3,1.22590965]
[1768238429073,1.256,3131.5,3130.2,1.36965767]
[1768238429967,1.256,3131.4,3130.2,1.36965767]
[1768238430370,1.256,3131.4,3130.3,0.14077612]
[1768238430871,3.197,3132.0,3130.8,1.22590965]
[1768238431071,1.256,3131.9,3130.8,1.22590965]
[1768238431376,1.256,3131.8,3130.7,0.14077612]
[1768238431765,1.256,3131.8,3130.3,0.30062612]
[1768238432072,1.22590965,3131.5,3130.3,0.30062612]
[1768238432273,1.22590965,3131.5,3130.4,0.14077612]
[1768238432474,1.22590965,3131.7,3130.4,0.14077612]
[1768238434475,1.22590965,3131.5,3130.4,0.14077612]
[1768238436973,1.22590965,3131.3,3129.9,0.1377817]
[1768238437376,1.50498429,3131.8,3129.8,1.38577965]
[1768238437377,1.22590965,3130.9,3129.8,0.15987]
[1768238437878,1.22590965,3130.9,3129.8,0.16321132]
[1768238439982,1.22590965,3131.3,3130.0,0.1377817]
[1768238440171,1.256,3131.2,3130.0,0.1377817]
[1768238440372,0.1598,3131.4,3130.1,1.36369135]
[1768238440580,1.256,3131.3,3130.1,1.36369135]
[1768238441178,1.256,3131.3,3130.1,0.1377817]
[1768238442172,1.22590965,3130.8,3129.8,0.16321132]
[1768238443281,1.256,3131.3,3129.8,0.16321132]
[1768238443282,1.22590965,3130.3,3129.8,0.00334132]
[1768238443579,1.22590965,3130.7,3129.4,1.22590965]
[1768238443979,1.22590965,3130.9,3129.4,0.1377817]
[1768238444179,1.22590965,3130.9,3129.6,1.22590965]
[1768238444380,1.22962283,3130.9,3129.6,1.22968504]
[1768238445281,0.00371318,3130.9,3129.6,0.00377539]
[1768238446790,0.00371318,3130.9,3129.6,0.14155709]
[1768238447082,1.256,3130.8,3129.6,0.14155709]
[1768238447978,0.00371318,3130.9,3130.0,0.1377817]
[1768238449081,0.00371318,3130.9,3130.2,0.1377817]
[1768238449469,0.41176,3132.2,3130.2,0.1377817]
[1768238449677,4.91375225,3132.1,3130.2,0.1377817]
[1768238449980,4.453,3132.0,3130.2,0.1377817]
[1768238450571,4.45556235,3132.0,3130.2,0.1377817]
[1768238450771,0.00256235,3132.0,3130.2,0.1377817]
[1768238450984,1.256,3131.9,3130.2,0.1377817]
[1768238453079,0.00256235,3132.0,3130.2,0.1377817]
[1768238453275,4.453,3131.9,3130.2,0.1377817]
[1768238454184,0.00256235,3132.0,3130.6,0.1377817]
[1768238454383,0.00256235,3132.0,3130.8,0.1377817]
[1768238454689,1.25856235,3132.0,3130.8,0.1377817]
[1768238455181,0.00256235,3132.0,3131.0,0.1377817]
[1768238458177,0.00256235,3132.0,3131.1,0.1377817]
[1768238460490,0.252,3132.9,3131.1,0.1377817]
[1768238460491,0.4117,3133.3,3131.2,0.1377817]
[1768238460693,0.4117,3133.3,3131.5,0.1377817]
[1768238460991,4.452,3133.2,3131.5,0.1377817]
[1768238461590,4.4555152,3133.2,3131.5,0.1377817]
[1768238462078,1.22630864,3132.6,3131.0,0.1377817]
[1768238463290,0.15972,3132.9,3131.0,0.1377817]
[1768238463486,0.15972,3132.9,3131.2,0.1377817]
[1768238463689,4.451,3132.8,3131.3,0.1377817]
[1768238463891,1.255,3132.8,3131.4,0.1377817]
[1768238464282,0.0035152,3133.2,3131.6,0.13244579]
[1768238464489,0.252,3133.3,3131.3,1.22630864]
[1768238464490,0.01505027,3134.0,3132.6,0.13244579]
[1768238464789,1.255,3134.3,3132.6,0.13244579]
[1768238465289,0.15964,3134.6,3132.7,0.13244579]
[1768238465490,4.451,3134.5,3132.7,0.13244579]
[1768238465795,4.451,3134.5,3132.7,0.13468646]
[1768238466394,1.22630864,3134.3,3132.7,0.13468646]
[1768238467192,4.451,3134.5,3132.7,0.13468646]
[1768238467394,1.22630864,3134.4,3132.7,0.13468646]
[1768238469205,1.31749196,3134.4,3132.7,0.13468646]
[1768238470099,1.22630864,3134.0,3132.7,0.00224067]
[1768238470302,1.22630864,3133.6,3131.9,0.13244579]
[1768238470503,1.255,3133.5,3131.9,0.13244579]
[1768238471302,1.255,3133.5,3131.9,0.13545366]
[1768238475617,0.15967,3133.9,3131.9,0.13545366]
[1768238475812,4.45,3133.8,3131.9,0.29522366]
[1768238476011,4.45,3133.8,3132.0,0.14108879]
[1768238476917,4.45,3133.7,3132.0,0.14108879]
[1768238477918,4.5414265,3133.7,3132.0,0.14108879]
[1768238478220,1.255,3133.6,3132.0,0.14108879]
[1768238479120,1.255,3133.6,3132.1,0.14108879]
[1768238479422,0.15964,3134.4,3132.1,0.14108879]
[1768238479718,0.09197514,3134.2,3132.5,0.14108879]
[1768238479913,0.09197514,3134.0,3132.0,0.14108879]
[1768238480309,0.25165514,3133.8,3132.0,0.14108879]
[1768238481422,0.09197514,3133.8,3132.0,0.14108879]
[1768238481623,0.09033082,3133.3,3131.9,0.00300787]
[1768238481823,1.254,3133.2,3131.9,0.00300787]
[1768238482025,3.195,3133.1,3131.9,0.00300787]
[1768238482224,0.08732295,3133.0,3131.1,0.14108879]
[1768238482425,0.08732295,3133.0,3130.7,0.30091879]
[1768238482722,0.08732295,3132.7,3130.7,0.30091879]
[1768238483326,0.08732295,3132.7,3130.7,0.30329467]
[1768238483726,0.15973,3132.6,3130.7,0.30329467]
[1768238484418,0.2467256,3132.6,3130.7,0.30329467]
[1768238488428,0.15974,3132.5,3130.7,0.14346467]
[1768238488919,4.451,3132.4,3130.7,0.14346467]
[1768238489121,4.45486448,3132.4,3130.7,0.14346467]
[1768238489628,1.255,3132.3,3130.7,0.14346467]
[1768238489834,4.451,3132.3,3130.7,0.14346467]
[1768238492927,0.015,3132.2,3130.7,0.14346467]
[1768238495630,1.22551773,3132.0,3130.7,0.00237588]
[1768238495835,1.22551773,3131.6,3130.7,0.00237588]
[1768238496036,1.22551773,3132.0,3130.7,0.00237588]
[1768238496523,1.38528773,3132.0,3130.7,0.00237588]
[1768238496725,1.22551773,3131.6,3130.7,0.00237588]
[1768238496930,0.17477,3131.9,3130.7,0.00237588]
[1768238497230,1.22551773,3131.6,3130.3,0.14390548]
[1768238498130,1.22551773,3131.6,3130.3,0.14783165]
[1768238498533,0.15978,3131.8,3130.3,0.14783165]
[1768238499040,4.451,3131.7,3130.3,0.14783165]
[1768238500138,0.15978,3131.8,3130.3,0.14783165]
[1768238500340,4.451,3131.7,3130.3,0.14783165]
[1768238500838,1.22551773,3131.6,3130.3,0.14783165]
[1768238501041,1.22551773,3131.6,3130.3,0.00392617]
[1768238501935,1.38530773,3131.6,3130.3,0.00392617]
[1768238502444,1.22551773,3131.2,3129.8,0.14390548]
[1768238503339,1.22551773,3131.2,3129.8,0.14799847]
[1768238503539,0.078344,3131.1,3128.4,4.00506909]
[1768238503745,1.22551773,3129.8,3128.8,0.14390548]
[1768238504047,0.588,3129.8,3128.8,0.14390548]
[1768238504741,0.59058809,3129.8,3128.8,0.14659047]
[1768238505735,0.59058809,3129.8,3128.8,0.00268499]
[1768238509638,0.00258809,3129.8,3128.8,0.00268499]
[1768238509842,4.452,3129.7,3128.8,0.00268499]
[1768238510447,1.255,3129.6,3128.8,0.00268499]
[1768238510648,4.452,3129.6,3128.8,0.00268499]
[1768238511149,1.255,3129.5,3128.8,0.00268499]
[1768238511351,1.255,3129.4,3128.4,0.14390548]
[1768238512355,1.255,3129.4,3128.4,0.14673683]
[1768238512955,0.00258809,3129.8,3128.4,0.14673683]
[1768238513161,1.255,3129.4,3128.4,0.14673683]
[1768238514660,1.255,3129.4,3128.4,0.00283135]
[1768238516357,4.453,3129.3,3128.4,0.00283135]
[1768238517054,0.15988,3129.7,3128.4,0.00283135]
[1768238517264,4.453,3129.6,3128.4,0.00283135]
[1768238517671,0.15988,3129.7,3128.4,0.14673683]
[1768238517861,4.453,3129.6,3128.4,0.14673683]
[1768238518369,0.15988,3129.7,3128.4,0.14673683]
[1768238518567,4.453,3129.6,3128.4,0.14673683]
[1768238521372,4.453,3129.6,3128.4,0.00283135]
[1768238521867,4.53500944,3129.6,3128.4,0.00283135]
[1768238522073,0.15989,3129.5,3127.8,0.14390548]
[1768238522965,0.15989,3129.5,3127.8,0.14762944]
[1768238526374,0.1599,3129.3,3127.8,0.14762944]
[1768238526577,0.15991,3129.1,3127.8,0.14762944]
[1768238529375,0.15991,3129.1,3127.8,0.00372396]
[1768238529790,0.15993,3128.8,3127.8,0.00372396]
[1768238529986,1.255,3128.7,3127.8,0.00372396]
[1768238531191,1.255,3128.7,3127.4,0.13793794]
[1768238531577,0.15993,3128.8,3127.4,0.13793794]
[1768238531782,4.455,3128.7,3127.4,0.13793794]
[1768238531982,4.455,3128.7,3127.4,0.14105503]
[1768238532186,1.96362443,3127.5,3126.1,0.13793794]
[1768238532499,0.16,3127.5,3126.1,0.13793794]
[1768238532688,4.89923604,3127.4,3126.1,0.13793794]
[1768238532884,0.44423604,3127.3,3126.1,0.13793794]
[1768238533078,0.44423604,3127.2,3126.1,0.00263897]
[1768238533283,1.96362443,3127.0,3125.1,0.14033744]
[1768238533484,0.44423604,3126.9,3125.1,0.14033744]
[1768238533686,0.44423604,3126.8,3125.1,0.14033744]
[1768238533982,0.44423604,3126.7,3125.1,0.14033744]
[1768238534179,0.924,3126.6,3125.2,0.14033744]
[1768238534378,0.924,3126.6,3125.2,0.14349662]
[1768238534586,1.256,3126.5,3125.2,0.14349662]
[1768238534788,0.00290801,3127.3,3125.2,0.14349662]
[1768238534989,3.199,3126.9,3125.2,0.14349662]
[1768238538291,0.00290801,3127.3,3125.2,0.14349662]
[1768238538497,4.456,3127.2,3125.2,0.14349662]
[1768238538892,1.96362443,3127.1,3125.2,0.14349662]
[1768238539197,2.03643375,3127.1,3125.2,0.14349662]
[1768238540492,3.2,3127.0,3125.2,0.14349662]
[1768238540691,4.456,3127.0,3125.2,0.14349662]
[1768238542803,4.52957614,3127.0,3125.2,0.14349662]
[1768238544806,4.457,3126.9,3125.2,0.14349662]
[1768238547503,1.96362443,3126.6,3125.2,0.14349662]
[1768238547808,0.16004,3126.7,3125.2,0.00315918]
[1768238548207,0.07917208,3127.3,3125.2,0.14349662]
[1768238548405,5.03977911,3127.2,3125.2,0.14349662]
[1768238548713,0.58278911,3127.1,3125.2,0.14349662]
[1768238548899,0.42276911,3127.0,3125.2,0.14349662]
[1768238549099,4.457,3126.9,3125.2,0.14349662]
[1768238549800,0.16002,3127.1,3125.2,0.14349662]
[1768238549999,4.87495294,3127.0,3125.2,0.14349662]
[1768238550199,4.457,3127.0,3125.2,0.14349662]
[1768238551315,0.41813322,3126.9,3125.2,0.14349662]
[1768238551512,1.256,3126.8,3125.3,0.14033744]
[1768238551707,1.256,3126.7,3125.4,0.14033744]
[1768238553910,1.96362443,3125.9,3125.0,1.80659723]
[1768238554208,1.96362443,3125.9,3122.3,3.201]
[1768238554209,0.16006,3126.2,3123.9,0.14033744]
[1768238554411,4.87556467,3126.1,3124.1,0.13462991]
[1768238554706,0.41856467,3126.0,3124.1,0.13462991]
[1768238554911,0.41856467,3126.0,3124.1,0.13869794]
[1768238555111,0.41856467,3126.0,3124.2,0.13462991]
[1768238555312,4.458,3125.9,3124.2,0.13462991]
[1768238556903,4.458,3125.9,3124.2,8.13222991]
[1768238557315,4.458,3125.9,3124.3,0.13462991]
[1768238557815,4.458,3125.9,3124.3,8.13222991]
[1768238558014,4.458,3125.9,3124.3,0.13462991]
[1768238558416,0.41894583,3125.8,3124.3,0.13462991]
[1768238558608,4.458,3125.9,3124.3,0.13462991]
[1768238558807,0.41888018,3125.8,3124.3,0.13462991]
[1768238559106,4.458,3125.9,3124.3,0.13462991]
[1768238559305,0.41895132,3125.8,3124.1,0.00406803]
[1768238559504,0.41895132,3125.7,3124.1,0.00406803]
[1768238559708,4.458,3125.9,3124.1,0.00406803]
[1768238559709,0.41928332,3125.6,3124.1,0.00406803]
[1768238559909,4.458,3125.9,3124.1,0.13869794]
[1768238560110,0.41697698,3125.8,3124.1,0.13869794]
[1768238560311,4.87497698,3125.7,3124.1,0.13869794]
[1768238560511,0.41697698,3125.6,3124.1,0.13869794]
[1768238561118,0.41697698,3125.6,3124.1,8.13629794]
[1768238561322,0.41697698,3125.6,3124.1,0.13869794]
[1768238561718,0.41697698,3125.6,3124.2,7.9976]
[1768238561910,4.87497698,3125.5,3124.2,8.13222991]
[1768238562111,0.41697698,3125.4,3124.2,0.13462991]
[1768238562311,0.41697698,3125.4,3124.3,7.9976]
[1768238562916,1.256,3125.3,3124.3,7.9976]
[1768238563313,0.16008,3125.9,3124.3,7.9976]
[1768238563516,0.41444098,3125.8,3124.2,0.13462991]
[1768238563815,4.87244098,3125.7,3124.2,0.13462991]
[1768238564119,0.41444098,3125.6,3124.2,0.13462991]
[1768238564318,0.41444098,3125.6,3124.3,7.9976]
[1768238565923,0.41444098,3125.6,3124.3,8.13222991]
[1768238568424,0.41444098,3125.6,3124.4,0.13462991]
[1768238568723,4.87444098,3125.5,3124.4,0.13462991]
[1768238568925,1.257,3125.4,3124.4,0.13462991]
[1768238569315,1.257,3125.4,3124.8,7.9976]
[1768238569516,1.257,3125.4,3124.8,7.99115778]
[1768238569823,1.257,3125.3,3124.5,6.73209402]
[1768238571721,0.41427872,3125.2,3124.1,0.00406803]
[1768238571928,0.41427872,3125.1,3124.2,6.73209402]
[1768238572122,0.41423691,3125.0,3123.6,0.13462991]
[1768238572321,0.41423691,3124.9,3123.7,6.73209402]
[1768238572521,0.00272208,3125.1,3123.7,6.73209402]
[1768238572725,0.41414976,3125.0,3123.7,6.73209402]
[1768238572925,0.41414976,3124.9,3123.8,0.13462991]
[1768238573223,0.00272208,3125.1,3123.8,0.13462991]
[1768238573224,0.00272208,3125.1,3123.8,0.13862816]
[1768238573420,1.257,3125.0,3123.8,0.13862816]
[1768238574032,0.00272208,3125.1,3124.1,6.86672393]
[1768238574228,1.257,3125.0,3124.1,6.86672393]
[1768238575024,0.00272208,3125.1,3124.2,0.13462991]
[1768238575324,4.46,3125.3,3124.2,0.13462991]
[1768238575523,4.46,3125.3,3123.8,0.00399825]
[1768238575524,0.41431464,3125.2,3123.8,0.00399825]
[1768238575729,0.41428971,3125.1,3123.8,0.13862816]
[1768238575925,0.41428971,3125.0,3123.8,0.13862816]
[1768238576124,0.00371286,3125.0,3123.8,0.13862816]
[1768238576330,0.00371286,3125.0,3123.9,6.73209402]
[1768238579434,0.40398517,3124.9,3123.9,6.73209402]
[1768238579730,1.257,3124.8,3124.0,0.13462991]
[1768238580031,1.257,3124.7,3124.0,0.13462991]
[1768238580232,1.26071286,3125.0,3124.0,0.13462991]
[1768238580535,0.00371286,3125.0,3124.0,0.13462991]
[1768238580936,1.257,3125.3,3124.0,0.29479991]
[1768238581121,1.257,3125.3,3124.1,0.13462991]
[1768238581333,1.257,3125.5,3124.1,0.29479991]
[1768238581532,6.1,3126.7,3123.9,6.73209402]
[1768238581533,3.20685608,3126.8,3124.3,0.13462991]
[1768238581833,0.16007,3126.0,3123.8,0.13862816]
[1768238582034,0.40424775,3125.9,3123.8,0.13862816]